bitfinex/quotes_SOLUSD_20251118
["timestamp","ask_amount","ask_price","bid_price","bid_amount"]
[1763478667325,8.69547515,139.23,139.2,12.73403393]
[1763478667522,8.69547515,139.24,139.2,0.68]
[1763478667810,0.55215992,139.29,139.22,12.05403393]
[1763478668013,8.69547515,139.23,139.21,12.05403393]
[1763478668220,2.0,139.3,139.19,12.05403393]
[1763478668221,8.69547515,139.22,139.19,12.05403393]
[1763478668414,8.69547515,139.2,139.17,12.05403393]
[1763478668617,0.55215992,139.23,139.17,12.05403393]
[1763478668910,8.69547515,139.19,139.18,4.52]
[1763478669328,8.69547515,139.19,139.16,12.05403393]
[1763478669544,8.69547515,139.17,139.16,12.05403393]
[1763478669747,8.69547515,139.18,139.16,0.68]
[1763478669911,8.69547515,139.18,139.16,17.25724825]
[1763478670217,0.55215992,139.27,139.16,33.13849802]
[1763478670422,35.52790159,139.35,139.16,33.13849802]
[1763478670423,8.69547515,139.26,139.2,8.69547515]
[1763478670639,8.69547515,139.22,139.21,4.52]
[1763478670837,8.69547515,139.24,139.2,4.52]
[1763478671148,8.69547515,139.22,139.19,4.52]
[1763478671313,8.69547515,139.2,139.19,4.52]
[1763478671517,8.69547515,139.2,139.16,12.05724825]
[1763478671825,8.69547515,139.17,139.16,12.05724825]
[1763478672018,8.69547515,139.17,139.14,4.52]
[1763478672240,8.69547515,139.17,139.15,0.66]
[1763478672539,8.69547515,139.16,139.14,4.52]
[1763478672720,18.12096,139.22,139.14,5.18]
[1763478672918,0.55215992,139.23,139.14,4.52]
[1763478672919,8.69547515,139.17,139.14,4.52]
[1763478673419,8.69547515,139.17,139.15,0.66]
[1763478673734,8.69547515,139.2,139.15,0.66]
[1763478673915,8.69547515,139.19,139.15,0.66]
[1763478674117,5.05215992,139.26,139.15,9.35547515]
[1763478674435,5.05215992,139.26,139.17,8.69547515]
[1763478674436,0.55215992,139.26,139.17,8.69547515]
[1763478674656,0.55215992,139.31,139.21,8.69547515]
[1763478674808,8.69547515,139.27,139.22,4.5]
[1763478675014,8.69547515,139.27,139.22,13.85547515]
[1763478675340,8.69547515,139.26,139.23,0.66]
[1763478675519,8.69547515,139.24,139.22,4.5]
[1763478675713,8.69547515,139.26,139.23,0.66]
[1763478676032,2.0,139.34,139.23,0.66]
[1763478676033,4.5,139.34,139.23,9.35547515]
[1763478676236,0.55215992,139.33,139.23,0.66]
[1763478676410,8.69547515,139.29,139.24,9.35547515]
[1763478676615,0.55215992,139.38,139.26,18.48430284]
[1763478676841,8.69547515,139.29,139.25,4.5]
[1763478677028,0.55215992,139.36,139.26,0.66]
[1763478677239,8.69547515,139.3,139.26,0.66]
[1763478677432,0.55215992,139.36,139.26,0.66]
[1763478677936,8.69547515,139.29,139.26,0.66]
[1763478678121,8.69547515,139.34,139.29,7.17926627]
[1763478678321,8.69547515,139.34,139.3,4.5]
[1763478678641,0.55215992,139.4,139.3,13.19547515]
[1763478678944,8.69547515,139.37,139.31,0.66]
[1763478679127,8.69547515,139.34,139.31,0.66]
[1763478679514,8.69547515,139.35,139.31,0.66]
[1763478679715,18.67311992,139.41,139.31,0.66]
[1763478680025,8.69547515,139.36,139.31,9.35547515]
[1763478680232,0.1,139.43,139.33,7.17720519]
[1763478680454,8.69547515,139.4,139.35,8.69547515]
[1763478680653,18.67311992,139.39,139.34,0.66]
[1763478680947,18.67311992,139.39,139.19,65.54]
[1763478680948,5.97340633,139.35,139.29,0.66]
[1763478681149,18.12096,139.32,139.29,0.66]
[1763478681446,5.97340633,139.3,139.29,0.66]
[1763478681653,5.97340633,139.3,139.27,4.5]
[1763478681855,5.97340633,139.28,139.26,0.66]
[1763478682026,0.55215992,139.31,139.22,0.66]
[1763478682027,5.97340633,139.27,139.22,0.66]
[1763478682224,24.09436633,139.3,139.19,4.5]
[1763478682225,18.12096,139.24,139.19,4.5]
[1763478682548,5.97340633,139.2,139.15,5.16]
[1763478682727,18.12096,139.25,139.18,0.66]
[1763478683141,5.97340633,139.21,139.18,0.66]
[1763478683329,18.12096,139.25,139.18,0.66]
[1763478683330,18.12096,139.25,139.19,4.5]
[1763478683660,5.97340633,139.22,139.19,4.5]
[1763478683866,18.67311992,139.27,139.2,0.66]
[1763478684046,5.97340633,139.25,139.2,0.66]
[1763478684427,0.55215992,139.29,139.2,13.81695992]
[1763478684729,5.97340633,139.26,139.21,0.66]
[1763478684943,0.55215992,139.29,139.21,0.66]
[1763478684944,5.97340633,139.25,139.21,0.66]
[1763478685136,18.12096,139.29,139.21,0.66]
[1763478685347,5.97340633,139.26,139.21,6.63340633]
[1763478685548,5.97340633,139.27,139.22,5.97340633]
[1763478685862,5.97340633,139.27,139.23,5.16]
[1763478686377,0.55215992,139.31,139.24,0.66]
[1763478686531,5.97340633,139.27,139.24,0.66]
[1763478686950,18.12096,139.32,139.24,0.66]
[1763478687153,2.0,139.4,139.25,8.69152812]
[1763478687353,0.1,139.43,139.24,0.66]
[1763478687354,8.69152812,139.31,139.26,8.69152812]
[1763478687556,8.69152812,139.32,139.27,13.19152812]
[1763478687925,8.69152812,139.31,139.28,0.66]
[1763478688129,8.69152812,139.31,139.24,4.5]
[1763478688130,8.69152812,139.29,139.24,4.5]
[1763478688359,8.69152812,139.27,139.24,4.5]
[1763478688674,8.69152812,139.27,139.18,0.71849403]
[1763478688675,8.69152812,139.25,139.18,9.78882769]
[1763478688831,8.69152812,139.2,139.18,0.66]
[1763478689156,18.12096,139.22,139.18,0.66]
[1763478689157,8.69152812,139.19,139.18,0.66]
[1763478689360,8.69152812,139.19,139.17,4.5]
[1763478689528,8.69152812,139.18,139.14,0.66]
[1763478689730,8.69152812,139.17,139.14,0.66]
[1763478690132,18.12096,139.23,139.14,0.66]
[1763478690350,4.5,139.24,139.13,0.2]
[1763478690351,8.69152812,139.15,139.13,0.2]
[1763478690664,8.69152812,139.14,139.13,0.2]
[1763478691035,2.0,139.24,139.13,0.86]
[1763478691245,4.5,139.25,139.14,13.85152812]
[1763478691437,8.69152812,139.2,139.14,13.85152812]
[1763478691658,8.69152812,139.2,139.15,9.35152812]
[1763478692165,8.69152812,139.19,139.16,0.66]
[1763478692340,8.69152812,139.17,139.15,0.66]
[1763478692546,18.12096,139.22,139.14,4.5]
[1763478692732,18.12096,139.21,139.15,0.66]
[1763478692934,8.69152812,139.18,139.15,0.66]
[1763478693146,18.12096,139.21,139.15,0.66]
[1763478693147,8.69152812,139.19,139.15,0.66]
[1763478693462,8.69152812,139.18,139.15,0.66]
[1763478693768,18.12096,139.21,139.14,4.5]
[1763478693931,8.69152812,139.15,139.14,4.5]
[1763478694129,18.12096,139.2,139.15,0.66]
[1763478694356,0.55215992,139.27,139.15,0.66]
[1763478694357,8.69152812,139.19,139.15,0.66]
[1763478694550,8.69152812,139.2,139.15,0.66]
[1763478694948,8.69152812,139.17,139.15,0.66]
[1763478695234,8.69152812,139.17,139.14,4.5]
[1763478695434,8.69152812,139.16,139.14,5.16]
[1763478695684,8.69152812,139.15,139.13,0.2]
[1763478695837,8.69152812,139.14,139.13,0.2]
[1763478697555,22.98035581,139.14,139.13,0.2]
[1763478697954,13.19152812,139.14,139.13,0.2]
[1763478698147,22.98035581,139.14,139.13,0.2]
[1763478699353,22.98035581,139.14,139.08,0.2]
[1763478699354,18.12096,139.11,139.08,0.2]
[1763478699642,8.69152812,139.09,139.08,0.2]
[1763478699868,18.12096,139.1,139.08,0.2]
[1763478700180,26.81248812,139.09,139.08,0.2]
[1763478700742,8.69152812,139.09,139.08,0.2]
[1763478700965,36.60131581,139.09,139.08,0.2]
[1763478701176,18.12096,139.05,139.03,0.2]
[1763478701555,8.69152812,139.04,139.03,0.2]
[1763478702173,18.48035581,139.04,139.03,0.2]
[1763478702359,8.69152812,138.96,138.95,0.68]
[1763478702561,8.69152812,138.96,138.92,0.68]
[1763478702867,8.69152812,138.96,138.91,8.69152812]
[1763478703173,8.69152812,138.97,138.92,18.48035581]
[1763478703371,8.69152812,138.97,138.9,9.78882769]
[1763478703549,8.69152812,138.96,138.9,18.48035581]
[1763478703750,8.69152812,138.97,138.92,18.48035581]
[1763478704162,2.0,139.08,138.94,18.48035581]
[1763478704360,18.12096,139.04,138.95,0.68]
[1763478704570,8.69152812,138.98,138.95,0.68]
[1763478704766,18.12096,139.04,138.95,0.68]
[1763478704767,8.69152812,138.97,138.95,0.68]
[1763478705073,8.69152812,138.96,138.95,0.68]
[1763478705274,18.12096,139.04,138.95,16.56817405]
[1763478705447,8.69152812,139.0,138.95,7.8767996]
[1763478705654,22.62096,139.05,138.96,10.46882769]
[1763478705972,8.69152812,139.0,138.96,10.46882769]
[1763478706155,22.62096,139.05,138.94,4.5]
[1763478706356,22.62096,139.05,138.94,5.18]
[1763478706357,8.69152812,138.96,138.94,5.18]
[1763478706567,8.69152812,138.97,138.94,5.18]
[1763478706969,8.69152812,138.97,138.95,0.68]
[1763478707151,8.69152812,138.96,138.91,0.68]
[1763478707350,8.69152812,138.94,138.9,9.78882769]
[1763478707566,18.12096,139.0,138.92,0.68]
[1763478707766,8.69152812,138.95,138.92,0.68]
[1763478708363,8.69152812,138.94,138.92,0.68]
[1763478709174,18.12096,138.98,138.9,0.68]
[1763478709376,8.69152812,138.93,138.9,0.68]
[1763478709766,36.09663302,139.09,138.91,9.78882769]
[1763478709767,4.5,139.0,138.91,9.78882769]
[1763478709963,8.69152812,138.96,138.91,9.78882769]
[1763478710270,8.69152812,138.96,138.92,0.68]
[1763478710478,8.69152812,138.95,138.92,0.68]
[1763478710648,8.69152812,138.94,138.9,0.68]
[1763478710854,8.69152812,138.94,138.91,0.68]
[1763478712476,8.69152812,138.95,138.91,0.68]
[1763478712697,18.12096,138.98,138.91,0.68]
[1763478712851,18.12096,138.98,138.91,6.68565565]
[1763478713052,6.00565565,138.97,138.92,15.79448334]
[1763478713360,6.00565565,138.94,138.9,0.68]
[1763478713688,6.00565565,138.94,138.91,0.68]
[1763478713994,6.00565565,138.93,138.89,4.5]
[1763478714169,22.62096,138.97,138.87,0.68]
[1763478714362,6.00565565,138.89,138.87,0.68]
[1763478714558,6.00565565,138.88,138.87,0.68]
[1763478714877,6.00565565,138.89,138.87,0.68]
[1763478715262,22.62096,138.95,138.87,0.68]
[1763478715591,6.00565565,138.89,138.87,0.68]
[1763478715769,22.62096,138.95,138.87,0.68]
[1763478716090,18.12096,138.95,138.87,0.68]
[1763478716411,18.67311992,138.95,138.87,0.68]
[1763478716560,6.00565565,138.88,138.85,0.2]
[1763478716890,10.05151681,138.86,138.85,0.88]
[1763478717068,18.12096,138.92,138.85,0.88]
[1763478717259,10.05151681,138.89,138.86,0.68]
[1763478717462,18.12096,138.93,138.86,10.73151681]
[1763478717711,10.05151681,138.92,138.86,0.68]
[1763478717890,10.05151681,138.89,138.86,0.68]
[1763478718290,10.05151681,138.88,138.86,0.68]
[1763478718482,10.05151681,138.88,138.85,0.2]
[1763478718683,18.12096,138.91,138.86,0.68]
[1763478718886,10.05151681,138.91,138.86,10.73151681]
[1763478719109,18.12096,138.93,138.89,9.78882769]
[1763478719110,10.05151681,138.93,138.89,9.78882769]
[1763478719401,10.05151681,138.96,138.91,10.05151681]
[1763478719610,10.05151681,138.94,138.92,0.68]
[1763478719777,0.55215992,138.97,138.92,0.68]
[1763478719977,10.05151681,138.95,138.92,0.68]
[1763478720205,4.5,139.01,138.92,0.68]
[1763478720206,5.05215992,139.01,138.92,0.68]
[1763478720407,10.05151681,138.96,138.92,0.68]
[1763478720609,5.05215992,139.01,138.92,0.68]
[1763478720917,0.55215992,139.01,138.95,9.78882769]
[1763478721215,2.0,139.17,138.98,27.90978769]
[1763478721452,5.05215992,139.16,139.02,10.05151681]
[1763478721585,5.05215992,139.16,139.03,0.68]
[1763478721925,10.05151681,139.09,139.04,4.5]
[1763478722279,0.55215992,139.08,139.04,4.5]
[1763478722611,10.05151681,139.05,139.03,0.68]
[1763478723120,18.12096,139.1,139.0,4.5]
[1763478723121,10.60367673,139.04,139.0,4.5]
[1763478723290,10.05151681,139.01,138.95,0.68]
[1763478723605,10.05151681,139.0,138.96,0.68]
[1763478724008,18.34789119,138.99,138.96,0.68]
[1763478724219,10.05151681,139.06,138.99,9.78882769]
[1763478724389,18.34789119,139.05,139.0,10.05151681]
[1763478724707,10.05151681,139.02,139.0,0.68]
[1763478724913,28.23971614,139.01,138.97,0.68]
[1763478725241,28.23971614,139.01,138.96,4.5]
[1763478725242,18.18819933,139.0,138.99,9.78882769]
[1763478725529,18.18819933,139.0,138.98,0.68]
[1763478725728,10.05151681,138.99,138.96,4.5]
[1763478725933,18.12096,139.05,138.96,4.5]
[1763478725934,18.12096,139.05,138.98,19.8403445]
[1763478726111,28.23971614,139.04,138.98,19.8403445]
[1763478726314,4.5,139.08,138.99,0.68]
[1763478726626,18.12096,139.05,138.99,0.68]
[1763478726803,10.31419261,139.0,138.96,5.18]
[1763478727004,17.91800647,138.99,138.97,0.68]
[1763478727336,16.47800647,138.99,138.97,0.68]
[1763478727540,10.31419261,138.98,138.96,4.5]
[1763478727706,10.31419261,138.98,138.97,9.78882769]
[1763478727707,19.01658802,138.98,138.97,9.78882769]
[1763478728033,19.01658802,138.98,138.97,20.7830203]
[1763478728405,10.31419261,139.05,138.97,38.9039803]
[1763478728743,10.31419261,139.09,139.04,10.31419261]
[1763478728897,18.36510295,139.08,139.04,4.5]
[1763478729098,10.31419261,139.07,139.04,4.5]
[1763478729341,28.67929556,139.06,139.04,4.5]
[1763478729542,20.4006887,139.05,139.02,4.5]
[1763478729715,10.31419261,139.04,139.02,4.5]
[1763478729915,10.08649609,139.03,139.02,4.5]
[1763478730232,10.31419261,139.08,139.03,9.78882769]
[1763478730439,20.546916,139.07,139.03,9.78882769]
[1763478730602,10.31419261,139.05,139.02,4.5]
[1763478730805,0.68,139.09,139.02,4.5]
[1763478731003,10.31419261,139.04,139.02,4.5]
[1763478731223,10.31419261,139.03,139.02,4.5]
[1763478731520,10.31419261,139.03,138.99,4.5]
[1763478731521,20.546916,139.03,138.99,4.5]
[1763478731723,10.31419261,139.01,138.99,4.5]
[1763478731924,10.31419261,139.01,138.89,0.71999424]
[1763478731925,10.31419261,139.0,138.89,0.71999424]
[1763478732101,10.31419261,138.96,138.86,7.20149791]
[1763478732308,9.90483587,138.95,138.91,10.31419261]
[1763478732516,9.90483587,138.95,138.92,4.5]
[1763478732706,9.90483587,138.95,138.92,14.28882769]
[1763478732901,9.90954161,138.94,138.93,9.78882769]
[1763478733105,10.31419261,139.01,138.93,20.1030203]
[1763478733306,10.31419261,138.98,138.94,9.78882769]
[1763478733520,20.22373422,138.97,138.94,9.78882769]
[1763478733827,9.90954161,138.96,138.93,20.1030203]
[1763478734013,10.31419261,138.98,138.93,9.78882769]
[1763478734214,9.90954161,138.97,138.93,9.78882769]
[1763478734414,10.31419261,138.96,138.92,4.5]
[1763478734616,9.90954161,138.95,138.93,9.78882769]
[1763478734819,35.977961,139.1,138.93,9.78882769]
[1763478734820,0.55215992,139.09,138.94,20.1030203]
[1763478735015,10.31419261,139.03,138.98,10.31419261]
[1763478735215,10.31419261,139.02,138.99,4.5]
[1763478735422,18.12096,139.07,138.99,4.5]
[1763478735423,9.90954161,139.01,138.99,4.5]
[1763478735622,10.31419261,139.03,138.99,4.5]
[1763478735832,9.90954161,139.02,139.0,9.78882769]
[1763478736037,9.90954161,139.01,139.0,9.78882769]
[1763478736637,18.09919275,139.01,138.94,27.30024145]
[1763478736845,10.31419261,138.97,138.92,7.19834571]
[1763478737137,10.31419261,138.97,138.94,4.5]
[1763478737340,10.31419261,138.95,138.94,4.5]
[1763478737910,5.18,138.99,138.91,14.81419261]
[1763478738117,0.68,138.99,138.92,9.78882769]
[1763478738325,10.31419261,138.95,138.92,9.78882769]
[1763478738522,10.31419261,138.96,138.92,9.78882769]
[1763478738728,10.31419261,138.94,138.91,4.5]
[1763478739242,10.31419261,138.92,138.91,4.5]
[1763478739411,10.31419261,138.92,138.88,4.5]
[1763478739611,10.31419261,138.91,138.88,4.5]
[1763478739830,0.68,138.95,138.88,4.5]
[1763478740143,10.31419261,138.9,138.88,4.5]
[1763478740355,10.31419261,138.91,138.88,4.5]
[1763478740557,18.12096,138.96,138.89,9.78882769]
[1763478740764,10.31419261,138.95,138.9,7.19942404]
[1763478741057,10.31419261,138.95,138.91,9.78882769]
[1763478741251,10.31419261,138.95,138.92,4.5]
[1763478741627,0.69,138.94,138.85,0.2]
[1763478741828,0.69,138.94,138.87,9.78882769]
[1763478742042,0.55215992,139.03,138.91,20.1030203]
[1763478742043,0.69,139.01,138.91,20.1030203]
[1763478742330,0.69,139.01,138.9,18.12096]
[1763478742331,2.0,139.1,138.94,10.31419261]
[1763478742527,0.55215992,139.13,138.85,25.40696306]
[1763478742528,0.55215992,139.09,138.99,20.1030203]
[1763478742769,10.31419261,139.05,139.01,9.78882769]
[1763478742953,18.67311992,139.09,139.0,4.5]
[1763478743155,10.31419261,139.02,139.0,4.5]
[1763478743452,0.55215992,139.15,139.01,20.1030203]
[1763478743660,10.31419261,139.09,139.04,10.31419261]
[1763478743965,10.31419261,139.07,139.04,4.5]
[1763478744166,0.69,139.12,139.04,4.5]
[1763478744329,0.55215992,139.11,139.04,4.5]
[1763478744534,10.31419261,139.09,139.04,14.81419261]
[1763478744749,10.31419261,139.09,139.05,9.78882769]
[1763478745458,10.31419261,139.08,139.04,4.5]
[1763478745629,10.31419261,139.1,139.05,9.78882769]
[1763478745834,10.31419261,139.08,139.04,4.5]
[1763478746240,18.12096,139.12,139.05,9.78882769]
[1763478746440,18.81096,139.12,139.05,9.78882769]
[1763478746647,18.81096,139.12,139.04,4.5]
[1763478746648,10.31419261,139.07,139.04,4.5]
[1763478746848,10.31419261,139.06,139.04,4.5]
[1763478747057,10.31419261,139.05,139.04,4.5]
[1763478747375,10.31419261,139.05,138.98,4.5]
[1763478747540,0.69,139.07,139.01,9.78882769]
[1763478747734,0.69,139.07,139.02,4.5]
[1763478747735,10.31419261,139.05,139.02,4.5]
[1763478747959,0.69,139.07,139.02,4.5]
[1763478748273,10.31419261,139.06,139.02,4.5]
[1763478748680,10.31419261,139.05,139.02,4.5]
[1763478748977,0.69,139.07,139.02,4.5]
[1763478749169,10.02491405,139.04,139.02,4.5]
[1763478749369,10.02491405,139.05,139.02,4.5]
[1763478749538,0.79,139.14,139.05,9.78882769]
[1763478749739,0.79,139.14,139.04,10.02491405]
[1763478749740,10.02491405,139.1,139.06,4.5]
[1763478749952,10.02491405,139.1,139.07,9.78882769]
[1763478750351,10.71491405,139.1,139.06,4.5]
[1763478750555,0.55215992,139.12,139.07,9.78882769]
[1763478750741,0.69,139.12,139.06,4.5]
[1763478750951,10.02491405,139.1,139.06,4.5]
[1763478751256,10.02491405,139.09,139.06,4.5]
[1763478751461,10.02491405,139.09,139.02,25.31381101]
[1763478751462,10.02491405,139.07,139.02,9.78882769]
[1763478751635,10.02491405,139.03,139.0,4.5]
[1763478751841,0.55215992,139.06,139.0,4.5]
[1763478751842,10.02491405,139.04,139.0,4.5]
[1763478752070,10.02491405,139.05,139.01,9.78882769]
[1763478752376,10.02491405,139.04,139.0,4.5]
[1763478752848,10.02491405,139.03,139.0,4.5]
[1763478753055,0.69,139.06,139.0,4.5]
[1763478753254,10.02491405,139.04,139.0,4.5]
[1763478753573,0.69,139.06,139.0,4.5]
[1763478753574,10.02491405,139.02,139.0,4.5]
[1763478753874,10.02491405,139.01,139.0,4.5]
[1763478754079,10.02491405,139.01,138.96,9.78882769]
[1763478754368,10.02491405,139.01,138.97,4.48]
[1763478754544,10.02491405,139.03,138.98,9.78882769]
[1763478755074,10.02491405,139.03,138.98,16.9840309]
[1763478755290,10.02491405,139.03,138.98,9.78882769]
[1763478755291,10.02491405,139.02,138.98,9.78882769]
[1763478755500,0.55215992,139.05,138.98,19.81374174]
[1763478755703,10.02491405,139.08,139.02,10.02491405]
[1763478755906,10.02491405,139.07,139.03,4.48]
[1763478756068,0.69,139.08,139.03,4.48]
[1763478756392,10.02491405,139.07,139.03,4.48]
[1763478756877,0.69,139.1,139.04,9.78882769]
[1763478757079,10.02491405,139.09,139.04,9.78882769]
[1763478757582,10.02491405,139.07,139.03,4.48]
[1763478757785,10.02491405,139.12,139.07,9.78882769]
[1763478757994,10.02491405,139.13,139.08,4.48]
[1763478758290,0.69,139.13,139.09,10.02491405]
[1763478758492,16.0487158,139.13,139.08,14.50491405]
[1763478758811,10.71491405,139.12,139.08,4.48]
[1763478758960,10.02491405,139.1,139.02,0.71932096]
[1763478759162,0.69,139.11,139.05,4.48]
[1763478759395,10.02491405,139.09,139.05,4.48]
[1763478759702,10.02491405,139.09,138.97,0.71957976]
[1763478759703,10.02491405,139.06,138.95,7.19683339]
[1763478759905,10.02491405,139.06,138.94,35.98640477]
[1763478759906,10.02491405,139.02,138.96,10.02491405]
[1763478760067,10.02491405,139.02,138.96,14.50491405]
[1763478760262,10.02491405,139.0,138.96,4.48]
[1763478760464,10.02491405,138.97,138.96,4.48]
[1763478760666,10.02491405,138.98,138.93,10.02491405]
[1763478760873,10.02491405,138.99,138.94,10.02491405]
[1763478761074,10.02491405,138.99,138.95,14.26882769]
[1763478761288,10.02491405,138.98,138.95,14.26882769]
[1763478762093,0.69,139.01,138.95,14.26882769]
[1763478762307,5.99025892,139.05,138.97,19.81374174]
[1763478762463,10.02491405,139.03,138.98,14.50491405]
[1763478762815,10.02491405,139.02,138.98,4.48]
[1763478763161,0.67,139.06,138.98,4.48]
[1763478763162,0.67,139.04,138.98,14.50491405]
[1763478763365,10.02491405,139.03,138.98,14.50491405]
[1763478763802,10.02491405,139.02,138.98,4.48]
[1763478764003,10.69491405,139.02,138.98,4.48]
[1763478764302,10.69491405,139.01,138.98,4.48]
[1763478764471,10.02491405,139.01,138.98,4.48]
[1763478764666,0.67,139.05,138.99,19.81374174]
[1763478764867,10.69491405,139.05,139.0,10.02491405]
[1763478765097,10.69491405,139.05,139.01,4.48]
[1763478765267,0.67,139.04,139.01,4.48]
[1763478765473,10.02491405,139.03,139.01,4.48]
[1763478765684,10.69491405,139.04,139.01,4.48]
[1763478765880,4.48,139.09,139.02,19.81374174]
[1763478765881,0.67,139.09,139.02,19.81374174]
[1763478766078,0.67,139.09,139.03,10.02491405]
[1763478766278,0.67,139.09,139.04,14.50491405]
[1763478766477,5.97898898,139.09,139.04,14.50491405]
[1763478766914,5.30898898,139.09,139.05,9.78882769]
[1763478767202,0.67,139.08,139.04,4.48]
[1763478767398,0.67,139.08,139.04,14.50491405]
[1763478767877,0.67,139.08,139.04,4.48]
[1763478768402,10.02491405,139.07,139.0,10.02491405]
[1763478768602,10.02491405,139.04,138.99,9.78882769]
[1763478768788,18.12096,139.05,138.99,19.81374174]
[1763478768981,0.67,139.04,138.99,19.81374174]
[1763478769376,0.67,139.04,138.99,9.78882769]
[1763478769679,0.67,139.04,139.0,10.02491405]
[1763478769881,0.67,139.04,139.01,4.48]
[1763478770080,10.69491405,139.04,139.01,4.48]
[1763478770515,0.67,139.03,138.99,9.78882769]
[1763478770693,10.02491405,139.02,138.95,10.02491405]
[1763478770893,10.69491405,139.01,138.96,4.48]
[1763478771213,10.02491405,138.99,138.96,4.48]
[1763478771423,10.69491405,139.0,138.96,4.48]
[1763478771627,0.67,139.0,138.96,4.48]
[1763478771790,0.67,138.99,138.96,4.48]
[1763478772126,0.67,139.0,138.96,4.48]
[1763478772287,0.67,138.99,138.96,4.48]
[1763478773822,0.67,138.99,138.92,10.02491405]
[1763478774119,10.02491405,138.98,138.92,4.48]
[1763478774501,0.67,138.97,138.92,4.48]
[1763478775016,18.12096,138.95,138.88,4.48]
[1763478775305,28.14587405,138.95,138.88,14.50491405]
[1763478775522,0.67,138.94,138.89,10.02491405]
[1763478775702,18.79096,138.94,138.9,10.02491405]
[1763478775884,0.67,138.94,138.91,9.78882769]
[1763478776088,0.67,138.93,138.85,0.2]
[1763478776393,0.67,138.93,138.88,10.02491405]
[1763478776921,0.67,138.97,138.92,9.78882769]
[1763478777084,0.67,138.97,138.93,6.00662425]
[1763478778425,0.67,138.97,138.94,9.78882769]
[1763478778590,0.55215992,139.01,138.95,6.00662425]
[1763478778919,0.67,139.03,139.0,6.00662425]
[1763478779118,0.55215992,139.06,138.99,10.48662425]
[1763478779294,1.22215992,139.06,138.99,10.48662425]
[1763478779489,18.12096,139.04,138.99,10.48662425]
[1763478779816,1.22215992,139.03,138.99,4.48]
[1763478780022,18.12096,139.02,138.96,20.27545194]
[1763478780320,18.12096,139.02,138.96,10.48662425]
[1763478780321,0.55215992,139.01,138.96,10.48662425]
[1763478780529,18.12096,139.0,138.97,9.78882769]
[1763478780823,6.00662425,139.05,138.97,9.78882769]
[1763478780824,0.67,139.07,138.99,9.78882769]
[1763478780998,0.55215992,139.12,139.05,6.00662425]
[1763478780999,0.67,139.09,139.05,6.00662425]
[1763478781185,8.00662425,139.2,139.08,6.00662425]
[1763478781186,0.67,139.11,139.08,6.00662425]
[1763478781385,0.67,139.13,139.09,14.26882769]
[1763478781903,0.67,139.13,139.09,4.48]
[1763478782289,18.79096,139.13,139.09,4.48]
[1763478782795,18.12096,139.09,139.05,6.00662425]
[1763478783108,0.67,139.08,139.05,9.78882769]
[1763478783310,0.67,139.08,139.04,10.48662425]
[1763478783491,18.12096,139.07,139.04,4.48]
[1763478784033,18.12096,139.07,139.01,9.78882769]
[1763478784034,0.67,139.06,139.01,9.78882769]
[1763478784191,0.67,139.06,139.03,9.78882769]
[1763478784617,18.12096,139.08,139.05,9.78882769]
[1763478784924,18.79096,139.1,139.05,15.79545194]
[1763478785107,0.67,139.1,139.05,9.78882769]
[1763478785316,0.67,139.09,139.05,15.79545194]
[1763478785522,18.12096,139.06,139.04,4.48]
[1763478785722,6.55878417,139.08,139.04,4.48]
[1763478785921,0.1,139.14,139.05,15.79545194]
[1763478785922,6.55878417,139.12,139.05,15.79545194]
[1763478786102,18.12096,139.1,139.06,6.00662425]
[1763478786302,0.67,139.11,139.05,15.79545194]
[1763478786499,18.12096,139.09,139.05,15.79545194]
[1763478786733,18.12096,139.09,139.05,9.78882769]
[1763478786907,18.12096,139.09,139.04,4.48]
[1763478786908,0.67,139.08,139.04,4.48]
[1763478787119,18.12096,139.09,139.05,15.79545194]